Cogmind - Beta 10 *** ADVENTURER MODE // 2020.09.15 @ 20:15:14 Player: SuitGuy Result: Destroyed by D-53 Grenadier with Mini Grenade Launcher Performance ------------- Evolutions (0) 0 Regions Visited (2) 400 Robots Destroyed (18) 90 Value Destroyed (352) 352 Prototype IDs (0) 0 Alien Tech Used (0) 0 Bonus (25) 25 TOTAL SCORE: 867 Bonus ------- Follower Combat Kills 25 Cogmind --------- Core Integrity 0/250 Matter 205/300 Energy 155/250 System Corruption 1% Temperature Cool (0) Movement Core (150) Ox2 Location -10/Mines Parts ------- > --- POWER (1) -------- Ion Engine > --- PROPULSION (2) --- (None) > --- UTILITY (2) ------ Small Storage Unit Visual Processing Unit > --- WEAPON (2) ------- (None) > --- INVENTORY (6) ---- Medium Matter Pod (100) Peak State ------------ > --- POWER ------------ Ion Engine > --- PROPULSION ------- Compact Wheel Compact Wheel > --- UTILITY ---------- Small Storage Unit Medium Matter Pod > --- WEAPON ----------- Medium Laser Particle Gun > --- INVENTORY -------- (None) [Rating: 8] Favorites ----------- Power Ion Engine Engine Ion Engine Propulsion Light Treads Treads Light Treads Leg Aluminum Leg Wheel Compact Wheel Utility Small Storage Unit Storage Small Storage Unit Processor Visual Processing Unit Weapon Medium Laser Energy Gun Medium Laser Ballistic Gun Light Assault Rifle Launcher Grenade Launcher Build | -11 -10 -10 ------- Run | Scr Mat Min Slots Evolved . | . . . Power . | . . . Propulsion . | . . . Utility . | . . . Weapon . | . . . Parts Attached 23 | 8 5 10 Power 3 | 1 . 2 Engine 3 | 1 . 2 Core . | . . . Reactor . | . . . Propulsion 7 | 2 2 3 Treads 2 | 2 . . Leg 3 | . . 3 Wheel 2 | . 2 . Hover . | . . . Flight . | . . . Utility 4 | 3 . 1 Device . | . . . Storage 3 | 3 . . Processor 1 | . . 1 Hackware . | . . . Protection . | . . . Artifact . | . . . Weapon 9 | 2 3 4 Energy Gun 4 | . 3 1 Energy Cannon . | . . . Ballistic Gun 2 | 2 . . Ballistic Cannon . | . . . Launcher 3 | . . 3 Special Weapon . | . . . Impact Weapon . | . . . Slashing Weapon . | . . . Piercing Weapon . | . . . Special Melee Weapon . | . . . Unidentified Prototypes . | . . . Parts Lost 7 | . . 7 Power 1 | . . 1 Propulsion 3 | . . 3 Utility . | . . . Weapon 3 | . . 3 Highest Loss Streak 7 | . . 7 Average Slot Usage (%) 95 | . 100 90 Engine 13 | . 14 12 Treads 3 | . 6 . Leg 8 | . . 19 Wheel 13 | . 21 3 Storage 23 | . 28 16 Processor 4 | . . 11 Energy Gun 21 | . 19 23 Ballistic Gun 4 | . 8 . Naked Turns . | . . . Heaviest Build 16 | 15 16 15 Greatest Support 40 | 40 40 32 Greatest Overweight (x) 4 | 1 . 4 Average Overweight (x) . | . . . Largest Inventory Capacity 8 | 8 6 6 Average Capacity 6 | 6 6 6 Most Carried 6 | 6 6 6 Average Carried 4 | 4 5 5 Final Capacity 6 | 6 6 6 Final Carried 6 | 5 6 1 Class Distribution -------------------- 77% | Mutant 22% | Scavenger-Mutant Dominant Class ---------------- Mutant | -10/Materials Scavenger-Mutant | -10/Mines Resources | -11 -10 -10 ----------- Run | Scr Mat Min Matter Collected 520 | 349 121 50 Remotely . | . . . Salvage Created 572 | 129 314 129 Parts 26 | 3 14 9 Haulers Intercepted . | . . . Recyclers Shooed . | . . . Parts Field Recycled . | . . . Retrieved Matter . | . . . Parts Self-Destructed . | . . . Prevented . | . . . Kills | -11 -10 -10 ------- Run | Scr Mat Min Combat Hostiles Destroyed 12 | . 6 6 Guns 8 | . 6 2 AOE 4 | . . 4 Classes Destroyed 5 | 2 2 1 Worker 3 | 2 . 1 Recycler 1 | 1 . . Watcher 2 | . 2 . Grunt 8 | . 6 2 Assembled 4 | . . 4 Best Kill Streak 5 | 1 3 5 Combat Bots Only 4 | . 3 4 Max Kills in Single Turn 5 | 1 1 5 Gunslinging . | . . . Exploded 4 | . . 4 Melee . | . . . Uniques/NPCs Destroyed . | . . . Combat | -11 -10 -10 -------- Run | Scr Mat Min Damage Taken 1089 | . 215 874 Core 259 | . 16 243 Absorbed by Shields . | . . . Core Remaining (%) 100 | 100 . . Volleys Fired 47 | 6 24 17 Largest 2 | 2 2 2 Hottest 115 | 40 115 100 Shots Fired 92 | 12 48 32 Gun 84 | 12 48 24 Cannon . | . . . Launcher 8 | . . 8 Special . | . . . Kinetic 40 | 12 28 . Thermal 44 | . 20 24 Explosive 8 | . . 8 Electromagnetic . | . . . Robot Hit Streak 22 | 8 22 6 Robot Miss Streak 3 | 1 1 3 Penetration Max . | . . . Secondary Targets 1 | . 1 . Max Gunslinging Chain 1 | . 1 . Shots Hit Robots 66 | 9 41 16 Core Hits 46 | 6 17 23 Critical Hits . | . . . Critical Kills . | . . . Critical Parts Destroyed . | . . . Melee Attacks . | . . . Impact . | . . . Slashing . | . . . Piercing . | . . . Sneak Attacks . | . . . Combat Hostiles . | . . . Follow-up Attacks . | . . . Damage Inflicted 1007 | 79 407 521 Guns 647 | 79 407 161 Cannons . | . . . Explosions 360 | . . 360 Melee . | . . . Ramming . | . . . Kinetic 235 | 79 156 . Thermal 412 | . 251 161 Explosive 360 | . . 360 Electromagnetic . | . . . Impact . | . . . Slashing . | . . . Piercing . | . . . Highest Corruption 1 | . 1 1 Average Corruption 1 | . 1 1 Corruption Purged . | . . . Effects 1 | . . 1 Targeting Errors 1 | . . 1 Overload Shots . | . . . Overflow Damage 8 | . . 8 Projectiles . | . . . Explosions 8 | . . 8 Melee . | . . . Knockbacks . | . . . Impact . | . . . Kinetic . | . . . Secondary . | . . . Self-Inflicted Damage 17 | . . 17 Shots 2 | . . 2 Rammed . | . . . Targets Rammed . | . . . Kicked . | . . . Crushed . | . . . Highest Temperature 282 | . 240 282 Average Temperature 108 | . 97 120 Received Heat Transfer 243 | . 156 87 Siege Activations . | . . . Robots Corrupted . | . . . Combat Hostiles . | . . . Parts Fried . | . . . Impact Corruptions . | . . . Robots Melted . | . . . Combat Hostiles . | . . . Parts Melted 1 | . 1 . Heat Transferred 1147 | . 666 481 Parts Sabotaged . | . . . Parts Stolen . | . . . Parts Stripped . | . . . Power Chain Reactions . | . . . Missiles Intercepted . | . . . Alert | -11 -10 -10 ------- Run | Scr Mat Min Peak Influence 190 | 15 190 133 Initial 62 | . 8 62 Average 78 | 7 109 103 Maximum Alert Level . | . . . Low Security (%) 100 | 100 100 100 Level 1 . | . . . Level 2 . | . . . Level 3 . | . . . Level 4 . | . . . Level 5 . | . . . High Security . | . . . Max Security . | . . . Squads Dispatched 1 | . 1 . Investigation 1 | . 1 . Extermination . | . . . Reinforcement . | . . . Assault . | . . . Garrison . | . . . Intercept . | . . . Construction Impeded . | . . . Haulers Reinforced . | . . . Stealth | -11 -10 -10 --------- Run | Scr Mat Min Distress Signals . | . . . Communications Jammed . | . . . Distress Signals . | . . . Times Spotted 35 | . 8 27 Peak Tracking Total 22 | . 2 22 Tactical Retreats 1 | . . 1 Traps | -11 -10 -10 ------- Run | Scr Mat Min Traps Triggered . | . . . Indirectly . | . . . Trap Hack Attempts . | . . . Triggered . | . . . Disarmed 2 | . 2 . Reprogrammed . | . . . Reused . | . . . Traps Extracted . | . . . Installed . | . . . Triggered . | . . . Machines | -11 -10 -10 ---------- Run | Scr Mat Min Machines Disabled . | . . . Max in Single Turn . | . . . Machines Sabotaged . | . . . Garrisons Compromised . | . . . Overloaded Fab Kills . | . . . Fab Network Shutdowns . | . . . Hacking | -11 -10 -10 --------- Run | Scr Mat Min Machines Accessed 5 | . 5 . Terminals 4 | . 4 . Fabricators . | . . . Repair Stations . | . . . Recycling Units 1 | . 1 . Scanalyzers . | . . . Garrison Access . | . . . Total Hacks 12 | . 12 . Successful 9 | . 9 . Failed 3 | . 3 . Catastrophic . | . . . Database Lockouts . | . . . Manual . | . . . Terminals 8 | . 8 . Fabricators . | . . . Repair Stations . | . . . Recycling Units 4 | . 4 . Scanalyzers . | . . . Garrison Access . | . . . Terminal Hacks 5 | . 5 . Record 1 | . 1 . Robot Analysis 1 | . 1 . Alert Level 2 | . 2 . Disarm Traps 1 | . 1 . Fabricator Hacks . | . . . Repair Station Hacks . | . . . Recycling Unit Hacks 4 | . 4 . Process 1 | . 1 . Report Inventory 1 | . 1 . Retrieve Components 2 | . 2 . Scanalyzer . | . . . Garrison Access Hacks . | . . . Unauthorized Hacks . | . . . Terminals . | . . . Fabricators . | . . . Repair Stations . | . . . Recycling Units . | . . . Scanalyzers . | . . . Garrison Access . | . . . Data Cores Recovered . | . . . Used . | . . . Hacking Detections 4 | . 4 . Full Trace Events 1 | . 1 . Feedback Events 1 | . 1 . Corruption 1 | . 1 . Feedback Blocked . | . . . Robot Schematics Acquired . | . . . Robots Built . | . . . Matter . | . . . Time . | . . . Total Robot Build Rating . | . . . Part Schematics Acquired . | . . . Parts Built . | . . . Matter . | . . . Time . | . . . Total Part Build Rating . | . . . Parts Repaired . | . . . Time . | . . . Parts Recycled . | . . . Recycled Matter . | . . . Retrieved Matter . | . . . Retrieved Components 4 | . 4 . Parts Scanalyzed . | . . . Part Schematics Acquired . | . . . Parts Damaged . | . . . Bothacking | -11 -10 -10 ------------ Run | Scr Mat Min Used RIF Installer . | . . . Robots Hacked . | . . . Non-combat . | . . . Combat . | . . . Robot Hacks Applied . | . . . Relay Couplers Released . | . . . Robots Rewired . | . . . Allies Hacked . | . . . Hacks Repelled . | . . . Allies | -11 -10 -10 -------- Run | Scr Mat Min Total Allies 2 | . . 2 Largest Group 2 | . . 2 Highest-Rated Group 41 | . . 41 Highest-Rated Ally 31 | . . 31 Total Orders . | . . . Ally Attacks 13 | . . 13 Total Damage 163 | . . 163 Kills 1 | . . 1 Allies Corrupted . | . . . Allies Melted . | . . . Intel | -11 -10 -10 ------- Run | Scr Mat Min Robot Analysis Total 1 | . 1 . Derelict Logs Recovered 1 | . . 1 Drone Launches . | . . . Drone Recoveries . | . . . Exploration | -11 -10 -10 ------------- Run | Scr Mat Min Turns Passed 795 | 227 322 246 Spaces Moved 480 | 115 218 147 Core 34 | 11 . 23 Treads 134 | 104 30 . Legs 108 | . . 108 Wheels 204 | . 188 16 Hover . | . . . Flight . | . . . Fastest Speed 50 | 50 100 100 Average Speed 121 | 152 108 117 Slowest Speed 250 | 160 160 250 Overloaded Moves . | . . . Propulsion Burnouts . | . . . Robots Hopped . | . . . Cave-ins Triggered . | . . . Exploration Rate (%) 32 | 7 44 45 Regions Visited 2 Branch Regions 1 Pre-discovered Areas . | . . . Known Exits Taken . | . . . Unknown Exits Taken 2 | 1 1 . Scrap Searched . | . . . Spaces Dug . | . . . Terrain Destroyed 31 | . . 31 Melee . | . . . Projectile . | . . . AOE 31 | . . 31 Terrain Rammed . | . . . Walls Destroyed . | . . . Machines Disabled . | . . . Actions | -11 -10 -10 --------- Run | Scr Mat Min Total 617 | 157 267 193 Wait 24 | 16 . 8 Move 478 | 114 217 147 Hop . | . . . Pick Up 23 | 12 9 2 Fast Attach 2 | . . 2 Attach 21 | 8 5 8 Detach 8 | 1 4 3 Swap . | . . . Drop 14 | . 8 6 Fire 47 | 6 24 17 Melee . | . . . Ram . | . . . Kick . | . . . Crush . | . . . Escape Stasis . | . . . Rewire . | . . . Trap . | . . . Miscellaneous . | . . . Route ------- -11/Scrapyard -10/Materials -10/Mines (discovered 1 exit: [*Mat]) History --------- Turn | Location | Event 24 | -11/Scrapyard | Discovered new exit (range 15) 228 | -11/Scrapyard | Entered Materials 350 | -10/Materials | Build established: Mutant 529 | -10/Materials | Discovered new exit (range 15) 550 | -10/Materials | Entered Mines 556 | -10/Mines | Learned Materials non-interactive machine intel 715 | -10/Mines | Discovered new exit (range 17) 749 | -10/Mines | Assembled infested the area 764 | -10/Mines | Core integrity fell below 50% 787 | -10/Mines | Core integrity fell below 20% 796 | -10/Mines | Destroyed by D-53 Grenadier with Mini Grenade Launcher Last Messages --------------- as-19903 destroyed. as-52938 destroyed. The unstable cave ceiling collapses. Grenade Launcher destroyed. as-14654 destroyed. as-19429 destroyed. Grenade Launcher destroyed. Ion Engine destroyed. as-81552 destroyed. The unstable cave ceiling collapses. as-75453 destroyed. as-90101 destroyed. as-12212 destroyed. as-00835 destroyed. The unstable cave ceiling collapses. as-24922 destroyed. T-07 Excavator is excavating. System corrupted: Grenade Launcher targeting data glitched. Aluminum Leg destroyed. Grenade Launcher destroyed. Map ----- +----------------------------------------------------+ | ????????? #????????????? | | ?????????? ???????????? | | ??????????? ##???????????? | | ???????????? %< #????????????? ## ## | | ????????????? #???????????????????# ### | | ?????????????? #???????????????????# ### | | ??????????????? #???????????????????# | | ??????????????## #####???????????????# ## | | ???????????#### # # ##??????????????# ### | | ??#?????#### ##?????????????# #?## | | ??# ???# ##????????????# #??# | | ?? ### % ###????####### #?? | | ?? % ##???# #?? | | ??? ##??# ########? | | ???????## % #### #???????? | | ????????## # #??????? ## | | ?????????#### ## #####??????? #?? | | ????????????## # ##### ##???????????#??? | | ???????????## # ###???######???????????????? | | ???????????# #####??????????????????????????? | | ??????????## #??????????????????????????????? | | ????####### #??????######??????????????????? | | ???## #???#### ##?????????????????? | | ???# ##### #?????????????????? | | ???# # #?????????????????? | | ???# ### @ #?????????????????? | | ???# ####??#### d ##????????????????? | | ???# ??????????# #????????????????? | | ???##???????????# d #????????????????? | | ????????????????## ##????????????????? | | ?????????????????# ##?????????????????? | | ?????????????????## ##??????????????????? | | ??????????????????# ###???????????????????? | | ??????????????????# ###?????????????????????? | | ??????????????????### ## ???????????????????????? | | ????????????????????##?# ??????????????????????? | | ???????????????????????# ###?????????????????????? | | ???????????????????????# #???????????????????????? | | ???????????????????????#t ???????????????????????? | | ???????????????????????# #???????????????????????? | | ????????????????????????#????????????????????????? | | ?????????????????????????????????????????????????? | | ?????????????????????????????????????????????????? | | ?????????????????????????????????????????????????? | | ?????????????????????????????????????????????????? | | | | | | | | | | | +----------------------------------------------------+ Best States ------------- Heat Dissipation 25 Energy Generation 10 Energy Capacity 250 Matter Stores 400 Matter Capacity 400 Sight Range 18 Terrain Scan Density 10 Resistance: KI 20 Resistance: TH 20 Resistance: EX 20 Resistance: EM 20 Resistance: I 20 Resistance: S 20 Resistance: P 20 Evasion (%) 40 Recoil Reduction 2 Offensive Hacking 10 Item Schematics ----------------- None Robot Schematics ------------------ None Fabricated ------------ Nothing Alien Tech Used ----------------- None Achievements -------------- Hunted Challenges ------------ None Game ------ Seed RagnarokRecoilScanner Manual? 0 Play Time 00:19:50 Cumulative 6.1 hours Start 2020.09.15 @ 19:52:56 End 2020.09.15 @ 20:15:14 Sessions 1 Manual Loads 0 Difficulty Adventurer Special Mode None Game No. 9 Rogue 6 Adventurer 3 Explorer 0 Win Type - Total 0 Types 0/0/0/0/0/0/0/0/0 Lore% 8 Gallery% 14 Achievement% 12 Wizard Run 0 Options --------- ASCII 0 Keyboard 0 Movement Mouse Keybinds 0 Fullscreen 1 Font 18/SmallcapsGlow Map View 76x50 Tactical HUD 0 Map Filters NONE Filters NONE Steam 1 RUN: 08dad57e-32c9-4180-aeae-11fb887c9a3c